bitfinex-derivatives/quotes_BTCF0:USTF0_20241223
["timestamp","ask_amount","ask_price","bid_price","bid_amount"]
[1734972236875,0.12713286,93461.0,93459.0,0.002]
[1734972237077,0.2517,93465.0,93459.0,0.002]
[1734972237482,0.2517,93465.0,93440.0,0.00160515]
[1734972237483,0.3608,93460.0,93440.0,0.00160515]
[1734972237678,0.3608,93443.0,93441.0,0.01200893]
[1734972237879,0.2717,93442.0,93416.0,0.3608]
[1734972238078,0.5413,93442.0,93416.0,0.3608]
[1734972238390,0.08810085,93439.0,93438.0,0.25704312]
[1734972238679,0.54194,93442.0,93438.0,0.25704312]
[1734972238872,0.5413,93442.0,93438.0,0.25704312]
[1734972239078,0.2717,93442.0,93438.0,0.25704312]
[1734972239475,0.01243077,93451.0,93438.0,0.25704312]
[1734972239684,0.3608,93452.0,93438.0,0.25704312]
[1734972239685,0.08810085,93450.0,93438.0,0.26929381]
[1734972239990,0.1586021,93442.0,93438.0,0.01225069]
[1734972240188,0.1586021,93442.0,93436.0,0.001]
[1734972240485,0.1586021,93442.0,93438.0,0.003]
[1734972241284,0.1586021,93442.0,93435.0,0.3608]
[1734972241285,0.12824308,93442.0,93436.0,0.003]
[1734972241586,0.12824308,93442.0,93436.0,0.009]
[1734972242079,0.12824308,93442.0,93438.0,0.005]
[1734972242790,0.1586021,93440.0,93438.0,0.003]
[1734972243682,0.1586021,93440.0,93438.0,0.002]
[1734972243993,0.1586021,93439.0,93438.0,0.002]
[1734972244181,0.1586021,93439.0,93438.0,0.005]
[1734972244690,0.1586021,93439.0,93438.0,0.002]
[1734972244888,0.1586021,93439.0,93438.0,0.005]
[1734972245381,0.33850085,93450.0,93438.0,0.005]
[1734972245382,0.1586021,93444.0,93438.0,0.005]
[1734972246084,0.1586021,93444.0,93438.0,0.01736663]
[1734972246382,0.1586021,93444.0,93438.0,0.005]
[1734972246783,0.33922085,93450.0,93438.0,0.005]
[1734972246784,0.1586021,93442.0,93438.0,0.005]
[1734972246991,0.2624,93441.0,93438.0,0.005]
[1734972247490,0.2624,93441.0,93438.0,0.004]
[1734972247682,0.1586021,93442.0,93438.0,0.004]
[1734972248081,0.33850085,93450.0,93438.0,0.004]
[1734972248881,0.2504,93450.0,93438.0,0.004]
[1734972249388,0.2504,93450.0,93438.0,0.003]
[1734972249985,0.3608,93451.0,93438.0,0.003]
[1734972250193,0.3608,93451.0,93438.0,0.004]
[1734972250389,0.19243113,93445.0,93438.0,0.004]
[1734972250695,0.19243113,93445.0,93440.0,0.053577]
[1734972251792,0.19243113,93443.0,93438.0,0.01594752]
[1734972251995,0.3608,93441.0,93438.0,0.004]
[1734972252299,0.19243113,93443.0,93438.0,0.004]
[1734972252300,0.19243113,93443.0,93438.0,0.002]
[1734972252598,0.19243113,93443.0,93440.0,0.3658]
[1734972253400,0.19243113,93443.0,93440.0,0.3648]
[1734972253604,0.27803073,93457.0,93440.0,0.3648]
[1734972253786,0.2656,93457.0,93450.0,0.414371]
[1734972254804,0.2656,93457.0,93450.0,0.3608]
[1734972254994,0.22204294,93454.0,93450.0,0.3608]
[1734972256799,0.22204294,93455.0,93450.0,0.3608]
[1734972257303,0.22204294,93455.0,93451.0,0.053571]
[1734972257506,0.22204294,93455.0,93450.0,0.3608]
[1734972257898,0.22204294,93456.0,93450.0,0.3608]
[1734972258703,0.3608,93454.0,93440.0,0.3608]
[1734972260101,0.3608,93454.0,93440.0,0.3628]
[1734972260402,0.05211233,93453.0,93440.0,0.3628]
[1734972261110,0.05211233,93453.0,93440.0,0.3658]
[1734972261609,0.05211233,93453.0,93440.0,0.45390085]
[1734972262199,0.05211233,93453.0,93440.0,0.005]
[1734972263297,0.05211233,93453.0,93440.0,0.09310085]
[1734972263701,0.05211233,93453.0,93440.0,0.005]
[1734972263901,0.05211233,93453.0,93440.0,0.006]
[1734972264497,0.05211233,93453.0,93441.0,0.3608]
[1734972264902,0.05211233,93453.0,93449.0,0.3608]
[1734972266908,0.22204294,93453.0,93449.0,0.3608]
[1734972267611,0.22204294,93453.0,93450.0,0.053571]
[1734972268104,0.05211233,93455.0,93453.0,0.053569]
[1734972268300,0.05211233,93455.0,93454.0,0.6251]
[1734972269803,0.2653,93481.0,93454.0,0.6251]
[1734972269804,0.22465047,93465.0,93454.0,0.6251]
[1734972270000,0.22465047,93465.0,93464.0,0.414363]
[1734972271102,0.3608,93465.0,93454.0,0.3608]
[1734972271403,0.001,93455.0,93454.0,0.3608]
[1734972272006,0.3638,93465.0,93454.0,0.3608]
[1734972272208,0.37563249,93465.0,93454.0,0.3608]
[1734972272609,0.05211233,93455.0,93450.0,0.08810085]
[1734972272908,0.05311233,93455.0,93452.0,0.05357]
[1734972273401,0.05311233,93455.0,93453.0,0.053569]
[1734972273804,0.05211233,93454.0,93453.0,0.053569]
[1734972274217,0.05211233,93454.0,93450.0,0.3608]
[1734972275205,0.05211233,93454.0,93450.0,0.414371]
[1734972275412,0.05211233,93454.0,93450.0,0.3608]
[1734972275714,0.2441,93453.0,93450.0,0.3608]
[1734972275913,0.05211233,93454.0,93450.0,0.3608]
[1734972276412,0.05211233,93454.0,93452.0,0.05357]
[1734972277008,0.30311233,93464.0,93450.0,0.3678]
[1734972277211,0.05211233,93464.0,93463.0,0.3608]
[1734972278607,0.23661598,93475.0,93463.0,0.3608]
[1734972278608,0.05211233,93474.0,93463.0,0.3608]
[1734972279207,0.05211233,93474.0,93463.0,0.3628]
[1734972279908,0.22465047,93478.0,93463.0,0.001]
[1734972279909,0.41291233,93477.0,93463.0,0.001]
[1734972280219,0.51990024,93477.0,93463.0,0.005]
[1734972280417,0.3608,93464.0,93443.0,0.3608]
[1734972280619,0.08810085,93460.0,93443.0,0.3608]
[1734972280817,0.08810085,93460.0,93431.0,0.3608]
[1734972280818,0.3608,93455.0,93431.0,0.3608]
[1734972281009,0.3608,93446.0,93431.0,0.3608]
[1734972281312,0.3608,93451.0,93436.0,0.053579]
[1734972281507,0.3608,93451.0,93449.0,0.053572]
[1734972281916,0.01159516,93458.0,93449.0,0.053572]
[1734972282220,0.31391233,93459.0,93449.0,0.053572]
[1734972282524,0.31391233,93459.0,93449.0,0.14167285]
[1734972282821,0.31391233,93459.0,93453.0,0.053569]
[1734972283126,0.05211233,93458.0,93453.0,0.053569]
[1734972283803,0.05211233,93458.0,93457.0,0.3608]
[1734972284513,0.05311233,93458.0,93457.0,0.3608]
[1734972285017,0.05211233,93458.0,93457.0,0.3608]
[1734972285213,0.05511233,93458.0,93457.0,0.3608]
[1734972285412,0.05611233,93458.0,93457.0,0.3608]
[1734972286019,0.05511233,93458.0,93457.0,0.3608]
[1734972286215,0.05511233,93458.0,93457.0,0.3638]
[1734972287515,0.05211233,93458.0,93457.0,0.3658]
[1734972287714,0.05211233,93458.0,93457.0,0.3688]
[1734972288220,4.7e-07,93465.0,93464.0,0.053563]
[1734972288418,0.34911295,93496.0,93472.0,0.053559]
[1734972288714,0.16352893,93481.0,93480.0,0.775154]
[1734972288917,0.12342471,93485.0,93484.0,0.053552]
[1734972289114,0.34911295,93496.0,93495.0,0.053545]
[1734972289309,0.34911295,93496.0,93495.0,0.775145]
[1734972289915,0.053541,93503.0,93498.0,0.053543]
[1734972291418,0.053538,93508.0,93498.0,0.053543]
[1734972291613,0.103,93500.0,93498.0,0.053543]
[1734972292219,0.1,93500.0,93498.0,0.053543]
[1734972292422,0.102,93500.0,93498.0,0.053543]
[1734972293019,0.102,93500.0,93498.0,0.06520378]
[1734972297422,0.102,93500.0,93495.0,0.7222]
[1734972297623,0.053545,93496.0,93495.0,0.7216]
[1734972298125,0.76254,93499.0,93498.0,0.005]
[1734972298436,0.7619,93499.0,93498.0,0.005]
[1734972298639,0.7619,93499.0,93495.0,0.053545]
[1734972298824,0.7619,93499.0,93495.0,0.055545]
[1734972299024,0.1,93500.0,93499.0,0.053543]
[1734972300644,0.1,93500.0,93499.0,0.311443]
[1734972301026,0.1,93500.0,93499.0,0.313443]
[1734972301227,0.1,93500.0,93499.0,0.314443]
[1734972301729,0.1,93500.0,93499.0,0.312443]
[1734972301928,0.1,93500.0,93499.0,0.313443]
[1734972302122,0.1,93500.0,93499.0,0.055543]
[1734972302329,0.1,93500.0,93499.0,0.313443]
[1734972302529,0.1,93500.0,93499.0,0.312443]
[1734972302830,0.1,93500.0,93499.0,0.314443]
[1734972303234,0.1,93500.0,93499.0,0.313443]
[1734972303425,0.1,93500.0,93499.0,0.316443]
[1734972303629,0.2546,93544.0,93499.0,0.5629]
[1734972303827,0.5074,93544.0,93536.0,0.3608]
[1734972304027,0.053521,93538.0,93536.0,0.3608]
[1734972304827,0.50804,93544.0,93536.0,0.3608]
[1734972305027,0.053521,93539.0,93536.0,0.3618]
[1734972305229,0.053521,93539.0,93536.0,0.001]
[1734972305230,0.053521,93538.0,93536.0,0.001]
[1734972305628,0.057521,93538.0,93536.0,0.001]
[1734972307839,0.053526,93529.0,93521.0,0.3608]
[1734972308031,0.304,93538.0,93517.0,0.00160388]
[1734972308032,0.3608,93530.0,93517.0,0.00160388]
[1734972308234,0.3608,93530.0,93499.0,0.3608]
[1734972308235,0.3608,93530.0,93502.0,0.053541]
[1734972308426,0.053533,93518.0,93499.0,0.3608]
[1734972308628,0.5082,93517.0,93500.0,0.08810085]
[1734972308837,0.5082,93517.0,93515.0,0.053534]
[1734972309135,0.5082,93517.0,93510.0,0.053537]
[1734972309527,0.5082,93517.0,93507.0,0.3608]
[1734972309733,0.561733,93517.0,93507.0,0.3608]
[1734972309935,0.5082,93517.0,93507.0,0.3608]
[1734972310131,0.5082,93517.0,93500.0,0.003]
[1734972310331,0.053537,93510.0,93500.0,0.003]
[1734972310739,0.053537,93510.0,93507.0,0.003]
[1734972311333,0.2525,93509.0,93500.0,0.006]
[1734972311644,0.50884,93517.0,93510.0,0.053536]
[1734972311842,0.2525,93516.0,93513.0,0.053535]
[1734972312039,0.001,93510.0,93508.0,0.053538]
[1734972312233,0.001,93510.0,93507.0,0.3608]
[1734972312434,0.001,93510.0,93502.0,0.3608]
[1734972312744,0.3608,93509.0,93484.0,0.3608]
[1734972313040,0.053545,93495.0,93484.0,0.3608]
[1734972313239,0.559246,93494.0,93480.0,0.08810085]
[1734972313439,0.7655,93494.0,93481.0,0.053553]
[1734972313631,0.08810085,93491.0,93475.0,0.3608]
[1734972314140,0.08810085,93491.0,93466.0,0.00879838]
[1734972314331,0.053555,93479.0,93464.0,0.3608]
[1734972314540,0.053555,93478.0,93464.0,0.3608]
[1734972314736,0.3608,93486.0,93464.0,0.3608]
[1734972314941,0.053551,93485.0,93468.0,0.053561]
[1734972315139,0.053551,93485.0,93484.0,0.004]
[1734972316045,0.053551,93485.0,93476.0,0.00360444]
[1734972316747,0.053553,93482.0,93476.0,0.00660444]
[1734972316933,0.001,93485.0,93476.0,0.00660444]
[1734972317937,0.001,93485.0,93476.0,0.00160444]
[1734972318249,0.414351,93486.0,93476.0,0.00460444]
[1734972318541,0.053553,93483.0,93476.0,0.00460444]
[1734972319647,0.3608,93486.0,93476.0,0.001]
[1734972320143,0.3608,93486.0,93476.0,0.002]
[1734972320349,0.053555,93478.0,93476.0,0.002]
[1734972320753,0.053555,93478.0,93464.0,0.3608]
[1734972320754,0.053563,93465.0,93464.0,0.3608]
[1734972321948,0.05357,93452.0,93434.0,0.3608]
[1734972322148,0.41437,93452.0,93434.0,0.3608]
[1734972322860,0.053581,93433.0,93428.0,0.2493]
[1734972323069,0.3608,93436.0,93416.0,0.01129581]
[1734972323363,0.05359,93418.0,93416.0,0.01129581]
[1734972323667,0.3608,93418.0,93412.0,0.00160567]
[1734972324469,0.3608,93418.0,93416.0,0.009]
[1734972325460,0.3608,93418.0,93412.0,0.00160567]
[1734972325663,0.3608,93418.0,93412.0,0.01060567]
[1734972325853,0.3608,93418.0,93416.0,0.003]
[1734972326558,0.3608,93418.0,93412.0,0.01060567]
[1734972326856,0.3608,93418.0,93412.0,0.01360567]
[1734972327054,0.3608,93418.0,93416.0,0.004]
[1734972327655,0.3608,93418.0,93412.0,0.00460567]
[1734972327656,0.3608,93418.0,93412.0,0.01060567]
[1734972328256,0.3608,93418.0,93416.0,0.004]
[1734972328452,0.3608,93418.0,93416.0,0.006]
[1734972328858,0.3608,93418.0,93416.0,0.002]
[1734972329059,0.3608,93418.0,93412.0,0.01060567]
[1734972329864,0.05359,93417.0,93412.0,0.01060567]
[1734972330064,0.05359,93417.0,93416.0,0.002]
[1734972330864,0.3608,93418.0,93416.0,0.05559]
[1734972331061,0.3608,93418.0,93416.0,0.006]
[1734972331266,0.41439,93418.0,93416.0,0.006]
[1734972331463,0.2439,93417.0,93412.0,0.00160567]
[1734972331661,0.414392,93413.0,93412.0,0.00460567]
[1734972332069,0.3608,93413.0,93412.0,0.00460567]
[1734972332370,0.3608,93413.0,93412.0,0.00160567]
[1734972333175,0.37330489,93413.0,93412.0,0.00160567]
[1734972334164,0.37330489,93413.0,93400.0,0.1]
[1734972334371,0.3608,93401.0,93400.0,0.1]
[1734972335170,0.6051,93401.0,93400.0,0.1]
[1734972335373,0.6051,93401.0,93400.0,0.103]
[1734972335563,0.6051,93401.0,93400.0,0.104]
[1734972336073,0.6051,93401.0,93400.0,0.103]
[1734972337369,0.8676,93401.0,93400.0,0.1]
[1734972337576,0.8686,93401.0,93400.0,0.1]
[1734972337771,0.053606,93389.0,93383.0,0.2484]
[1734972337976,0.053607,93387.0,93383.0,0.2484]
[1734972338181,0.053611,93381.0,93362.0,0.3608]
[1734972338367,0.50251185,93380.0,93362.0,0.3608]
[1734972338678,0.50251185,93380.0,93360.0,0.053622]
[1734972338679,0.053612,93379.0,93365.0,0.2402]
[1734972338870,0.3608,93371.0,93365.0,0.2402]
[1734972339075,0.05362,93366.0,93355.0,0.3608]
[1734972339467,0.05362,93366.0,93364.0,0.00560633]
[1734972340073,0.3608,93371.0,93364.0,0.00560633]
[1734972340274,0.3608,93379.0,93364.0,0.66640633]
[1734972340476,0.3608,93379.0,93377.0,0.053612]
[1734972340677,0.3608,93397.0,93389.0,0.053606]
[1734972340868,0.3608,93413.0,93410.0,0.053594]
[1734972341376,0.00160634,93420.0,93418.0,0.053589]
[1734972341580,0.00160634,93420.0,93413.0,0.053592]
[1734972341781,0.00160634,93420.0,93411.0,0.61646]
[1734972341976,0.00160634,93420.0,93411.0,0.6159]
[1734972342284,0.00160634,93420.0,93412.0,0.053593]
[1734972342578,0.00160634,93420.0,93411.0,0.6159]
[1734972342579,0.00160634,93420.0,93414.0,0.053591]
[1734972342875,0.00160634,93420.0,93411.0,0.26736967]
[1734972343083,0.3608,93415.0,93411.0,0.2581]
[1734972343383,0.3608,93415.0,93411.0,0.003]
[1734972343580,0.248,93414.0,93412.0,0.004]
[1734972344076,0.248,93414.0,93411.0,0.012]
[1734972344475,0.248,93414.0,93391.0,0.26179539]
[1734972344675,0.36144,93415.0,93391.0,0.26179539]
[1734972344883,0.3608,93415.0,93414.0,0.053592]
[1734972345382,0.00160634,93420.0,93419.0,0.053589]
[1734972345882,0.00160634,93420.0,93419.0,0.303989]
[1734972346080,0.0114025,93426.0,93419.0,0.303989]
[1734972346081,0.0114025,93426.0,93425.0,0.053585]
[1734972346582,0.2482,93433.0,93428.0,0.053583]
[1734972346783,0.2482,93433.0,93419.0,0.2504]
[1734972346784,0.2482,93433.0,93432.0,0.053581]
[1734972347281,0.26054,93439.0,93437.0,0.053578]
[1734972347473,0.2599,93453.0,93436.0,0.3608]
[1734972347675,0.2599,93453.0,93440.0,0.13226383]
[1734972347972,0.0016059,93454.0,93450.0,0.053571]
[1734972348583,0.0016059,93454.0,93451.0,0.05357]
[1734972349285,0.0016059,93454.0,93452.0,0.053569]
[1734972350587,0.0016059,93454.0,93452.0,0.058569]
[1734972350785,0.0016059,93454.0,93453.0,0.3608]
[1734972351590,0.2497,93469.0,93453.0,0.3608]
[1734972351778,0.36144,93471.0,93459.0,0.13226383]
[1734972351982,0.3608,93471.0,93459.0,0.13226383]
[1734972352282,0.3608,93471.0,93453.0,0.3628]
[1734972352988,0.3608,93471.0,93459.0,0.001]
[1734972353187,0.3608,93471.0,93459.0,0.003]
[1734972353379,0.3608,93471.0,93460.0,0.13226383]
[1734972353580,0.3608,93471.0,93468.0,0.05356]
[1734972354294,0.00072,93479.0,93477.0,0.053556]
[1734972354479,0.341665,93496.0,93470.0,0.3608]
[1734972354480,0.24,93495.0,93471.0,0.245]
[1734972354983,0.24,93495.0,93486.0,0.3608]
[1734972355186,0.24,93495.0,93491.0,0.053547]
[1734972355377,0.1,93500.0,93491.0,0.053547]
[1734972355586,0.1,93500.0,93494.0,0.053546]
[1734972355983,0.11127472,93500.0,93494.0,0.053546]
[1734972356183,0.004,93495.0,93494.0,0.053546]
[1734972356776,0.004,93495.0,93486.0,0.3608]
[1734972357384,0.004,93495.0,93491.0,0.053547]
[1734972358204,0.004,93495.0,93486.0,0.37188472]
[1734972358386,0.1,93500.0,93499.0,0.053543]
[1734972358590,0.103,93500.0,93499.0,0.053543]
[1734972359291,0.1,93500.0,93499.0,0.053543]
[1734972360190,0.1,93500.0,93499.0,0.054543]
[1734972360993,0.104,93500.0,93499.0,0.054543]
[1734972361797,0.1,93500.0,93499.0,0.059543]
[1734972361987,0.1,93500.0,93499.0,0.006]
[1734972362597,0.1,93500.0,93499.0,0.012]
[1734972363301,0.1,93500.0,93499.0,0.006]
[1734972363302,0.4608,93500.0,93499.0,0.006]
[1734972363592,0.4608,93500.0,93499.0,0.059543]
[1734972363793,0.4608,93500.0,93499.0,0.060543]
[1734972364690,0.4608,93500.0,93499.0,0.057543]
[1734972364991,0.4608,93500.0,93499.0,0.060543]
[1734972365494,0.4608,93500.0,93499.0,0.057543]
[1734972365694,0.4608,93500.0,93499.0,0.058543]
[1734972365894,0.4608,93500.0,93499.0,0.061543]
[1734972366091,0.1,93500.0,93499.0,0.061543]
[1734972366392,0.48388,93518.0,93499.0,0.061543]
[1734972366393,0.25458,93518.0,93517.0,0.053533]
[1734972366588,0.2539,93518.0,93517.0,0.053533]
[1734972366994,0.6147,93518.0,93517.0,0.053533]
[1734972367302,0.3608,93526.0,93525.0,0.053528]
[1734972367497,0.24972506,93539.0,93523.0,0.3608]
[1734972367693,0.2382,93539.0,93533.0,0.3608]
[1734972368487,0.2382,93539.0,93538.0,0.053521]
[1734972368994,0.2422,93539.0,93524.0,0.2376]
[1734972369195,0.2422,93539.0,93533.0,0.001]
[1734972369698,0.2432,93539.0,93538.0,0.001]
[1734972370303,0.2432,93539.0,93537.0,0.053521]
[1734972370996,0.2432,93539.0,93533.0,0.3618]
[1734972370997,0.2432,93539.0,93533.0,0.001]
[1734972371295,0.2422,93539.0,93533.0,0.001]
[1734972371897,0.2382,93539.0,93529.0,0.13226383]
[1734972372099,0.2432,93539.0,93538.0,0.001]
[1734972372486,0.2432,93539.0,93536.0,0.053521]
[1734972372691,0.2432,93539.0,93538.0,0.053521]
[1734972372884,0.2422,93539.0,93538.0,0.053521]
[1734972373290,0.2422,93539.0,93538.0,0.415321]
[1734972373596,0.004,93539.0,93538.0,0.415321]
[1734972374295,0.23200041,93551.0,93538.0,0.415321]
[1734972374599,0.004,93539.0,93538.0,0.415321]
[1734972374798,0.004,93539.0,93538.0,0.414321]
[1734972375204,0.23200041,93551.0,93540.0,0.053519]
[1734972375792,0.2208,93551.0,93543.0,0.053517]
[1734972375994,0.2208,93551.0,93538.0,0.3608]
[1734972376195,0.2208,93551.0,93549.0,0.053514]
[1734972376398,0.2429,93569.0,93546.0,0.3608]
[1734972376597,0.0110275,93568.0,93550.0,0.13226383]
[1734972376799,0.2429,93569.0,93550.0,0.13226383]
[1734972376996,0.2429,93569.0,93567.0,0.053504]
[1734972377299,0.232,93571.0,93570.0,0.053502]
[1734972377692,0.232,93571.0,93558.0,0.2371]
[1734972377896,0.3608,93564.0,93553.0,0.053512]
[1734972378091,0.3608,93554.0,93540.0,0.001]
[1734972378292,0.3608,93545.0,93540.0,0.001]
[1734972378500,0.3608,93554.0,93553.0,0.053512]
[1734972378703,0.3608,93565.0,93550.0,0.3608]
[1734972379004,0.006,93564.0,93563.0,0.053506]
[1734972380608,0.01150666,93574.0,93558.0,0.3608]
[1734972380800,0.003,93565.0,93564.0,0.053506]
[1734972381498,0.005,93564.0,93560.0,0.13226383]
[1734972381697,0.005,93564.0,93563.0,0.001]
[1734972382199,0.003,93565.0,93563.0,0.01314469]
[1734972382398,0.003,93565.0,93564.0,0.053506]
[1734972382905,0.003,93565.0,93564.0,0.0656561]
[1734972383205,0.2213,93581.0,93564.0,0.0121501]
[1734972383410,0.2213,93581.0,93579.0,0.053497]
[1734972384605,0.2213,93581.0,93579.0,0.054497]
[1734972384907,0.2273,93581.0,93579.0,0.054497]
[1734972385604,0.2273,93581.0,93571.0,0.3608]
[1734972385803,0.3608,93575.0,93561.0,0.053507]
[1734972386002,0.3608,93575.0,93568.0,0.053503]
[1734972386202,0.3608,93575.0,93570.0,0.053502]
[1734972386503,0.22794,93581.0,93579.0,0.053497]
[1734972386504,0.2273,93581.0,93579.0,0.053497]
[1734972386701,0.2213,93581.0,93579.0,0.053497]
[1734972388509,0.2213,93581.0,93579.0,0.054497]
[1734972388893,0.2213,93581.0,93579.0,0.055497]
[1734972389407,0.2213,93581.0,93579.0,0.054497]
[1734972389604,0.2213,93581.0,93579.0,0.055497]
[1734972390905,0.2213,93581.0,93579.0,0.054497]
[1734972391099,0.2213,93581.0,93579.0,0.055497]
[1734972391810,0.3608,93594.0,93589.0,0.053491]
[1734972392002,0.2355,93595.0,93579.0,0.055497]
[1734972392003,0.2214,93593.0,93592.0,0.05349]
[1734972393811,0.2234,93593.0,93592.0,0.05349]
[1734972394415,0.2214,93593.0,93592.0,0.05349]
[1734972394607,0.2214,93593.0,93592.0,0.05549]
[1734972394918,0.2214,93593.0,93592.0,0.05949]
[1734972395307,0.2214,93593.0,93592.0,0.05549]
[1734972395615,0.1,93600.0,93599.0,0.053486]
[1734972395912,0.1,93600.0,93599.0,0.414286]
[1734972396301,0.1,93600.0,93592.0,0.006]
[1734972396501,0.053489,93594.0,93592.0,0.006]
[1734972396706,0.4745,93593.0,93592.0,0.006]
[1734972397305,0.4745,93593.0,93592.0,0.004]
[1734972397505,0.4745,93593.0,93587.0,0.053492]
[1734972397702,0.4745,93593.0,93592.0,0.001]
[1734972398317,0.8353,93593.0,93592.0,0.001]
[1734972398612,0.8353,93593.0,93580.0,0.05509888]
[1734972399606,0.8353,93593.0,93582.0,0.053495]
[1734972400209,0.3608,93593.0,93588.0,0.053492]
[1734972400417,0.1,93600.0,93580.0,0.13486671]
[1734972400709,0.1,93600.0,93599.0,0.053486]
[1734972401200,0.2231,93622.0,93606.0,0.053482]
[1734972401406,0.15909529,93619.0,93606.0,0.3608]
[1734972401611,0.15909529,93619.0,93615.0,0.053476]
[1734972402010,0.15909529,93619.0,93617.0,0.053475]
[1734972402706,0.053476,93616.0,93604.0,0.3608]
[1734972402911,0.3608,93607.0,93605.0,0.01193744]
[1734972403207,0.3608,93607.0,93595.0,0.3608]
[1734972403208,0.2365,93606.0,93599.0,0.053485]
[1734972403409,0.2365,93606.0,93601.0,0.053485]
[1734972403809,0.2365,93606.0,93595.0,0.37194561]
[1734972404019,0.2365,93606.0,93604.0,0.002]
[1734972405004,0.2365,93606.0,93604.0,0.055483]
[1734972405207,0.3608,93619.0,93604.0,0.055483]
[1734972405208,0.3608,93628.0,93612.0,0.053478]
[1734972405417,0.3608,93628.0,93605.0,0.3608]
[1734972405418,0.2365,93621.0,93614.0,0.053477]
[1734972405606,0.12768055,93622.0,93613.0,0.3608]
[1734972406010,0.2365,93621.0,93612.0,0.053478]
[1734972406421,0.2365,93621.0,93614.0,0.053477]
[1734972407220,0.2365,93621.0,93616.0,0.053476]
[1734972407421,0.2365,93621.0,93619.0,0.053474]
[1734972408721,0.37254643,93628.0,93627.0,0.05347]
[1734972408918,0.3608,93628.0,93627.0,0.05347]
[1734972409317,0.12768055,93629.0,93627.0,0.05347]
[1734972410315,0.35798055,93636.0,93629.0,0.053469]
[1734972411126,0.35798055,93636.0,93630.0,0.053467]
[1734972411628,0.35798055,93636.0,93629.0,0.004]
[1734972411921,0.2303,93636.0,93629.0,0.004]
[1734972412119,0.15909529,93635.0,93629.0,0.004]
[1734972412712,0.15909529,93635.0,93630.0,0.001]
[1734972413215,0.15909529,93631.0,93630.0,0.001]
[1734972413417,0.15909529,93631.0,93629.0,0.004]
[1734972413817,0.15909529,93631.0,93630.0,0.002]
[1734972414218,0.15909529,93632.0,93630.0,0.002]
[1734972414813,0.15909529,93632.0,93629.0,0.001]
[1734972415015,0.15909529,93632.0,93630.0,0.001]
[1734972415521,0.19039782,93635.0,93630.0,0.001]
[1734972415916,0.19039782,93635.0,93623.0,0.3608]
[1734972416323,0.2303,93636.0,93626.0,0.05347]
[1734972416926,0.053471,93626.0,93610.0,0.00160227]
[1734972417232,0.3608,93621.0,93619.0,0.053474]
[1734972417430,0.3608,93629.0,93610.0,0.1338661]
[1734972417431,0.3608,93629.0,93627.0,0.05347]
[1734972417620,0.2303,93636.0,93627.0,0.05347]
[1734972418131,0.15957484,93630.0,93629.0,0.053469]
[1734972419725,0.12766473,93645.0,93642.0,0.053461]
[1734972420127,0.12766473,93645.0,93644.0,0.05346]
[1734972421229,0.2326,93653.0,93648.0,0.053458]
[1734972421532,0.2326,93653.0,93652.0,0.053455]
[1734972422934,0.2326,93653.0,93646.0,0.3608]
[1734972422935,0.12766473,93656.0,93654.0,0.053454]
[1734972423139,0.12766473,93656.0,93655.0,0.3608]
[1734972423834,0.12766473,93665.0,93662.0,0.05345]
[1734972424040,0.12766473,93665.0,93664.0,0.053449]
[1734972424827,0.12766473,93671.0,93656.0,0.2202]
[1734972425037,0.12766473,93671.0,93669.0,0.053445]
[1734972426145,0.005,93671.0,93669.0,0.053445]
[1734972427230,0.006,93671.0,93669.0,0.054445]
[1734972427738,0.002,93671.0,93669.0,0.053445]
[1734972429237,0.12766473,93688.0,93687.0,0.053435]
[1734972430535,0.12766473,93703.0,93699.0,0.053429]
[1734972431540,0.12766473,93703.0,93682.0,0.2158]
[1734972431735,0.3608,93695.0,93681.0,0.3608]
[1734972431943,0.277532,93694.0,93682.0,0.053438]
[1734972432143,0.3608,93695.0,93693.0,0.053432]
[1734972432637,0.3608,93695.0,93681.0,0.37183734]
[1734972432638,0.10342,93700.0,93698.0,0.053429]
[1734972433239,0.10342,93700.0,93691.0,0.2309]
[1734972433651,0.3608,93695.0,93687.0,0.053435]
[1734972433839,0.3608,93695.0,93691.0,0.053433]
[1734972434038,0.3608,93695.0,93693.0,0.053432]
[1734972434437,0.10042,93700.0,93689.0,0.3608]
[1734972434650,0.10042,93700.0,93699.0,0.053429]
[1734972436037,0.10042,93700.0,93699.0,0.056429]
[1734972437253,0.10042,93700.0,93699.0,0.063429]
[1734972437637,0.10042,93700.0,93699.0,0.07457758]
[1734972437842,0.05915484,93714.0,93699.0,0.31914858]
[1734972438044,0.05915484,93714.0,93713.0,0.053421]
[1734972438250,0.12704754,93716.0,93715.0,0.05342]
[1734972439843,0.10964671,93716.0,93715.0,0.05342]
[1734972440043,0.3608,93728.0,93727.0,0.053413]
[1734972441753,0.3608,93728.0,93727.0,0.056413]
[1734972442446,0.3608,93728.0,93727.0,0.055413]
[1734972442650,0.3608,93737.0,93736.0,0.053408]
[1734972443038,0.2242,93742.0,93727.0,0.51091674]
[1734972443338,0.2242,93742.0,93741.0,0.053405]
[1734972443745,0.36240078,93756.0,93727.0,0.51091674]
[1734972444047,0.36240078,93756.0,93749.0,0.0534]
[1734972445049,0.36240078,93756.0,93751.0,0.053399]
[1734972445246,0.36240078,93756.0,93752.0,0.053398]
[1734972445942,0.36240078,93756.0,93741.0,0.2347]
[1734972446143,0.36240078,93756.0,93750.0,0.053399]
[1734972447843,0.36240078,93756.0,93742.0,0.053404]
[1734972448040,0.3608,93743.0,93741.0,0.01085755]
[1734972448242,0.4423,93742.0,93720.0,0.13226383]